fUST/lending_fUST_20250226
["ID","MTS","AMOUNT","RATE_DAILY","PERIOD"]
[354474542,1740522643198,-500.0,0.00049589,120]
[354474543,1740522643208,-500.0,0.00049589,120]
[354474544,1740522643218,-500.0,0.00049589,120]
[354474545,1740522643227,-1182.77,0.00049589,120]
[354474546,1740522643237,-270.37021015,0.00049589,120]
[354474548,1740522643247,-500.0,0.00049589,120]
[354474549,1740522643257,-500.0,0.00049589,120]
[354474550,1740522643267,-500.0,0.00049589,120]
[354474551,1740522643276,-500.0,0.00049589,120]
[354474552,1740522643286,-500.0,0.00049589,120]
[354474553,1740522643295,-204.32559339,0.00049589,120]
[354474554,1740522643305,-500.0,0.00049589,120]
[354474555,1740522643314,-500.0,0.00049589,120]
[354474556,1740522643324,-500.0,0.00049589,120]
[354474557,1740522643333,-500.0,0.00049589,120]
[354474558,1740522643342,-500.0,0.00049589,120]
[354474559,1740522643352,-1000.0,0.00049589,120]
[354474560,1740522643362,-362.72293933,0.00049589,120]
[354474561,1740522643372,-500.0,0.00049589,120]
[354474562,1740522643381,-500.0,0.00049589,120]
[354474563,1740522643391,-500.0,0.00049589,120]
[354474564,1740522643400,-500.0,0.00049589,120]
[354474565,1740522643410,-887.1,0.00049589,120]
[354474566,1740522643420,-1154.88,0.00049589,120]
[354474567,1740522643430,-500.0,0.00049589,120]
[354474568,1740522643440,-500.0,0.00049589,120]
[354474569,1740522643449,-1361.03,0.00049589,120]
[354474570,1740522643459,-500.0,0.00049589,120]
[354474571,1740522643469,-500.0,0.00049589,120]
[354474572,1740522643478,-962.48,0.00049589,120]
[354474574,1740522643488,-1065.49,0.00049589,120]
[354474576,1740522643498,-806.39,0.00049589,120]
[354474578,1740522643507,-2442.31,0.00049589,120]
[354474580,1740522643516,-590.45,0.00049589,120]
[354474582,1740522643525,-468.45592454,0.00049589,120]
[354474584,1740522643535,-1911.46,0.00049589,120]
[354474586,1740522643544,-513.09560374,0.00049589,120]
[354474588,1740522643553,-2066.17,0.00049589,120]
[354474590,1740522643563,-500.0,0.00049589,120]
[354474592,1740522643572,-500.0,0.00049589,120]
[354474594,1740522643581,-614.14175679,0.00049589,120]
[354474595,1740522643591,-500.0,0.00049589,120]
[354474596,1740522643601,-500.0,0.00049589,120]
[354474598,1740522643610,-549.46,0.00049589,120]
[354474600,1740522643620,-500.0,0.00049589,120]
[354474602,1740522643629,-500.0,0.00049589,120]
[354474604,1740522643639,-500.0,0.00049589,120]
[354474606,1740522643648,-500.0,0.00049589,120]
[354474608,1740522643657,-500.0,0.00049589,120]
[354474610,1740522643667,-500.0,0.00049589,120]
[354474612,1740522643677,-500.0,0.00049589,120]
[354474614,1740522643686,-1579.89,0.00049589,120]
[354474617,1740522643696,-647.8,0.00049589,120]
[354474619,1740522643707,-500.0,0.00049589,120]
[354474620,1740522643717,-500.0,0.00049589,120]
[354474621,1740522643726,-670.08,0.00049589,120]
[354474622,1740522643735,-253.64990513,0.00049589,120]
[354474623,1740522643746,-500.0,0.00049589,120]
[354474624,1740522643755,-512.29568124,0.00049589,120]
[354474625,1740522643764,-500.0,0.00049589,120]
[354474626,1740522643774,-505.03,0.00049589,120]
[354474627,1740522643783,-500.0,0.00049589,120]
[354474628,1740522643793,-798.3,0.00049589,120]
[354474629,1740522643802,-500.0,0.00049589,120]
[354474630,1740522643812,-1054.91,0.00049589,120]
[354474631,1740522643821,-500.0,0.00049589,120]
[354474632,1740522643830,-500.0,0.00049589,120]
[354474633,1740522643839,-500.0,0.00049589,120]
[354474634,1740522643849,-210.40750591,0.00049589,120]
[354474635,1740522643858,-474.79339307,0.00049589,120]
[354474636,1740522643868,-583.2,0.00049589,45]
[354474637,1740522643878,-500.0,0.00049589,120]
[354474638,1740522643887,-500.0,0.00049589,120]
[354474639,1740522643896,-837.31,0.00049589,120]
[354474640,1740522644115,-500.0,0.00049589,120]
[354474641,1740522644125,-500.0,0.00049589,120]
[354474642,1740522644135,-488.40452971,0.00049589,120]
[354474643,1740522644145,-621.27526853,0.00049589,120]
[354474644,1740522644155,-609.35,0.00049589,120]
[354474645,1740522644165,-3073.6,0.00049589,120]
[354474646,1740522644175,-500.0,0.00049589,120]
[354474647,1740522644185,-2055.94,0.00049589,120]
[354474648,1740522644195,-500.0,0.00049589,120]
[354474649,1740522644204,-500.0,0.00049589,120]
[354474650,1740522644215,-500.0,0.00049589,120]
[354474651,1740522644225,-500.0,0.00049589,120]
[354474652,1740522644235,-572.51,0.00049589,120]
[354474653,1740522644244,-500.0,0.00049589,120]
[354474654,1740522644253,-500.0,0.00049589,120]
[354474655,1740522644262,-500.0,0.00049589,120]
[354474656,1740522644272,-748.66,0.00049589,120]
[354474657,1740522644281,-500.0,0.00049589,120]
[354474658,1740522644291,-1790.63,0.00049589,120]
[354474659,1740522644301,-500.0,0.00049589,120]
[354474660,1740522644310,-500.0,0.00049589,120]
[354474661,1740522644319,-2329.28,0.00049589,120]
[354474662,1740522644328,-370.98115921,0.00049589,120]
[354474663,1740522644339,-500.0,0.00049589,120]
[354474664,1740522644348,-500.0,0.00049589,120]
[354474665,1740522644358,-956.96,0.00049589,120]
[354474666,1740522644367,-500.0,0.00049589,120]
[354474667,1740522644377,-722.54,0.00049589,120]
[354474668,1740522644386,-779.51,0.00049589,120]
[354474669,1740522644396,-500.0,0.00049589,120]
[354474670,1740522644405,-500.0,0.00049589,120]
[354474671,1740522644415,-420.7459666,0.00049589,120]
[354474672,1740522644424,-1687.4,0.00049589,120]
[354474673,1740522644434,-500.0,0.00049589,120]
[354474674,1740522644444,-500.0,0.00049589,120]
[354474675,1740522644454,-587.69,0.00049589,120]
[354474676,1740522644463,-502.59570178,0.00049589,120]
[354474677,1740522644473,-500.0,0.00049589,120]
[354474678,1740522644482,-2032.0,0.00049589,120]
[354474679,1740522644493,-500.0,0.00049589,120]
[354474680,1740522644503,-546.97,0.00049589,120]
[354474681,1740522644512,-672.88,0.00049589,120]
[354474682,1740522644522,-500.0,0.00049589,120]
[354474683,1740522644532,-500.0,0.00049589,120]
[354474684,1740522644542,-686.84,0.00049589,120]
[354474685,1740522644552,-559.49,0.00049589,120]
[354474686,1740522644561,-500.0,0.00049589,120]
[354474687,1740522644570,-500.0,0.00049589,120]
[354474688,1740522644579,-500.0,0.00049589,120]
[354474689,1740522644589,-3953.93,0.00049589,120]
[354474690,1740522644599,-511.7,0.00049589,120]
[354474691,1740522644608,-1782.06,0.00049589,120]
[354474692,1740522644618,-1000.0,0.00049589,20]
[354474693,1740522644627,-500.0,0.00049589,120]
[354474694,1740522644637,-424.78980952,0.00049589,120]
[354474695,1740522644646,-500.0,0.00049589,120]
[354474696,1740522644656,-551.87,0.00049589,120]
[354474697,1740522644666,-1034.61,0.00049589,120]
[354474698,1740522644676,-512.38538375,0.00049589,120]
[354474699,1740522644686,-515.96945357,0.00049589,120]
[354474700,1740522644695,-500.0,0.00049589,120]
[354474701,1740522644705,-500.0,0.00049589,120]
[354474702,1740522644717,-500.0,0.00049589,120]
[354474703,1740522644726,-778.7,0.00049589,120]
[354474704,1740522644737,-550.14756504,0.00049589,120]
[354474705,1740522644747,-500.0,0.00049589,120]
[354474706,1740522644756,-503.94733162,0.00049589,120]
[354474707,1740522644766,-565.4022223,0.00049589,120]
[354474708,1740522644775,-501.49585251,0.00049589,120]
[354474709,1740522644786,-567.23,0.00049589,120]
[354474710,1740522644796,-631.24944096,0.00049589,120]
[354474711,1740522644805,-295.70419524,0.00049589,120]
[354474712,1740522644815,-522.69,0.00049589,120]
[354474713,1740522644824,-500.0,0.00049589,120]
[354474714,1740522644834,-500.0,0.00049589,120]
[354474715,1740522644844,-500.0,0.00049589,120]
[354474716,1740522644853,-500.0,0.00049589,120]
[354474717,1740522644863,-500.0,0.00049589,120]
[354474718,1740522644873,-500.0,0.00049589,120]
[354474719,1740522644882,-500.0,0.00049589,120]
[354474720,1740522644892,-539.26,0.00049589,120]
[354474721,1740522644902,-500.0,0.00049589,30]
[354474722,1740522644911,-559.92,0.00049589,120]
[354474723,1740522644921,-500.0,0.00049589,120]
[354474724,1740522644931,-500.0,0.00049589,120]
[354474725,1740522644941,-500.0,0.00049589,120]
[354474726,1740522644951,-621.32,0.00049589,120]
[354474727,1740522644961,-500.0,0.00049589,120]
[354474728,1740522644971,-500.0,0.00049589,120]
[354474729,1740522644980,-500.0,0.00049589,120]
[354474730,1740522644992,-911.64,0.00049589,120]
[354474731,1740522645001,-500.0,0.00049589,120]
[354474732,1740522645011,-500.0,0.00049589,120]
[354474733,1740522645020,-896.65,0.00049589,120]
[354474734,1740522645030,-500.0,0.00049589,120]
[354474735,1740522645040,-500.0,0.00049589,120]
[354474736,1740522645050,-500.0,0.00049589,120]
[354474737,1740522645060,-500.0,0.00049589,120]
[354474738,1740522645069,-500.0,0.00049589,120]
[354474739,1740522645079,-1018.86,0.00049589,120]
[354474740,1740522645089,-500.0,0.00049589,120]
[354474741,1740522645100,-872.84,0.00049589,120]
[354474742,1740522645110,-500.0,0.00049589,120]
[354474743,1740522645119,-500.0,0.00049589,120]
[354474744,1740522645129,-500.0,0.00049589,120]
[354474745,1740522645139,-500.0,0.00049589,120]
[354474746,1740522645149,-500.0,0.00049589,120]
[354474747,1740522645158,-500.0,0.00049589,120]
[354474748,1740522645168,-500.0,0.00049589,120]
[354474749,1740522645177,-542.07,0.00049589,120]
[354474750,1740522645187,-500.0,0.00049589,120]
[354474751,1740522645198,-1128.73,0.00049589,120]
[354474752,1740522645208,-500.0,0.00049589,120]
[354474753,1740522645218,-426.4327254,0.00049589,120]
[354474754,1740522645228,-500.0,0.00049589,120]
[354474755,1740522645238,-500.0,0.00049589,120]
[354474756,1740522645247,-2304.49,0.00049589,120]
[354474757,1740522645257,-500.0,0.00049589,120]
[354474758,1740522645266,-500.0,0.00049589,120]
[354474759,1740522645277,-894.15,0.00049589,120]
[354474760,1740522645286,-192.9997034,0.00049589,120]
[354474761,1740522645296,-500.0,0.00049589,120]
[354474762,1740522645305,-514.73057539,0.00049589,120]
[354474763,1740522645315,-500.0,0.00049589,120]
[354474764,1740522645325,-500.0,0.00049589,120]
[354474765,1740522645334,-1178.73,0.00049589,120]
[354474766,1740522645344,-500.0,0.00049589,120]
[354474767,1740522645354,-587.65,0.00049589,120]
[354474768,1740522645364,-500.0,0.00049589,120]
[354474769,1740522645373,-500.0,0.00049589,120]
[354474770,1740522645383,-500.0,0.00049589,120]
[354474771,1740522645393,-250.0,0.00049589,120]
[354474772,1740522645402,-631.71,0.00049589,120]
[354474773,1740522645412,-5952.41,0.00049589,120]
[354474774,1740522645422,-592.1,0.00049589,120]
[354474775,1740522645432,-500.0,0.00049589,120]
[354474776,1740522645442,-500.0,0.00049589,120]
[354474777,1740522645451,-515.99230837,0.00049589,2]
[354474778,1740522645461,-500.0,0.00049589,120]
[354474779,1740522645471,-500.0,0.00049589,120]
[354474781,1740522645481,-500.0,0.00049589,120]
[354474782,1740522645492,-541.29,0.00049589,120]
[354474783,1740522645502,-5514.64,0.00049589,120]
[354474784,1740522645511,-500.0,0.00049589,120]
[354474785,1740522645521,-500.0,0.00049589,120]
[354474786,1740522645530,-1364.33,0.00049589,120]
[354474787,1740522645540,-878.26,0.00049589,120]
[354474788,1740522645550,-500.0,0.00049589,120]
[354474789,1740522645559,-500.0,0.00049589,120]
[354474790,1740522645569,-1767.0,0.00049589,120]
[354474791,1740522645578,-275.41508314,0.00049589,120]
[354474792,1740522645588,-11889.22,0.00049589,120]
[354474793,1740522645597,-9895.02,0.00049589,3]
[354474794,1740522645606,-500.0,0.00049589,120]
[354474795,1740522645615,-481.01327457,0.00049589,120]
[354474796,1740522645625,-500.0,0.00049589,120]
[354474797,1740522645635,-500.0,0.00049589,120]
[354474798,1740522645644,-500.0,0.00049589,120]
[354474799,1740522645654,-500.0,0.00049589,120]
[354474800,1740522645663,-513.62232117,0.00049589,120]
[354474801,1740522645673,-437.78990285,0.00049589,120]
[354474802,1740522645683,-2282.38,0.00049589,120]
[354474803,1740522645692,-500.0,0.00049589,120]
[354474804,1740522645703,-500.0,0.00049589,120]
[354474805,1740522645718,-500.0,0.00049589,120]
[354474806,1740522645733,-500.0,0.00049589,120]
[354474807,1740522645742,-500.0,0.00049589,120]
[354474808,1740522645751,-375.92742985,0.00049589,120]
[354474809,1740522645762,-706.96,0.00049589,7]
[354474810,1740522645771,-500.0,0.00049589,120]
[354474811,1740522645781,-950.36,0.00049589,120]
[354474812,1740522645790,-500.0,0.00049589,120]
[354474813,1740522645800,-500.0,0.00049589,21]
[354474814,1740522645809,-13557.16,0.00049589,120]
[354474815,1740522645819,-500.0,0.00049589,120]
[354474816,1740522645828,-2769.31,0.00049589,120]
[354474817,1740522645838,-552.1,0.00049589,120]
[354474818,1740522645847,-3277.28,0.00049589,120]
[354474820,1740522645857,-500.0,0.00049589,120]
[354474821,1740522645866,-500.0,0.00049589,120]
[354474822,1740522645877,-2288.32,0.00049589,120]
[354474823,1740522645886,-500.0,0.00049589,120]
[354474824,1740522645896,-529.75,0.00049589,30]
[354474825,1740522645905,-500.0,0.00049589,120]
[354474826,1740522645915,-500.0,0.00049589,120]
[354474827,1740522645925,-8084.77,0.00049589,120]
[354474828,1740522645936,-500.0,0.00049589,120]
[354474829,1740522645945,-487.01682882,0.00049589,120]
[354474830,1740522645955,-1227.79,0.00049589,120]
[354474831,1740522645964,-5970.22,0.00049589,120]
[354474832,1740522645974,-1312.86,0.00049589,7]
[354474834,1740522645984,-500.0,0.00049589,120]
[354474835,1740522645994,-1559.13,0.00049589,120]
[354474836,1740522646004,-500.0,0.00049589,120]
[354474837,1740522646013,-500.0,0.00049589,120]
[354474838,1740522646022,-500.0,0.00049589,120]
[354474839,1740522646032,-13860.0,0.00049589,120]
[354474840,1740522646041,-500.0,0.00049589,120]
[354474841,1740522646051,-500.0,0.00049589,120]
[354474842,1740522646060,-1915.52,0.00049589,120]
[354474843,1740522646069,-500.0,0.00049589,120]
[354474844,1740522646079,-662.45,0.00049589,120]
[354474845,1740522646088,-505.08714687,0.00049589,120]
[354474846,1740522646097,-500.0,0.00049589,120]
[354474847,1740522646107,-2692.41,0.00049589,120]
[354474848,1740522646116,-500.0,0.00049589,120]
[354474849,1740522646126,-4405.19,0.00049589,120]
[354474850,1740522646135,-545.46,0.00049589,120]
[354474851,1740522646145,-217979.88,0.00049589,7]
[354474852,1740522646156,-2052.6,0.00049589,120]
[354474853,1740522646167,-3412.35,0.00049589,120]
[354474854,1740522646177,-500.0,0.00049589,120]
[354474855,1740522646186,-542.59,0.00049589,120]
[354474856,1740522646196,-649.38,0.00049589,120]
[354474857,1740522646206,-1236.53,0.00049589,120]
[354474858,1740522646216,-500.0,0.00049589,120]
[354474859,1740522646226,-500.0,0.00049589,120]
[354474860,1740522646236,-1318.2,0.00049589,120]
[354474861,1740522646246,-500.0,0.00049589,120]
[354474862,1740522646255,-500.0,0.00049589,120]
[354474863,1740522646265,-501.45333094,0.00049589,120]
[354474864,1740522646275,-500.0,0.00049589,120]
[354474865,1740522646285,-503.77889916,0.00049589,120]
[354474866,1740522646295,-17516.75,0.00049589,120]
[354474867,1740522646305,-1665.23,0.00049589,120]
[354474868,1740522646314,-3658.98,0.00049589,120]
[354474869,1740522646324,-500.0,0.00049589,120]
[354474870,1740522646334,-500.71530683,0.00049589,120]
[354474871,1740522646343,-500.0,0.00049589,120]
[354474872,1740522646352,-711.01,0.00049589,120]
[354474873,1740522646362,-500.0,0.00049589,30]
[354474874,1740522646371,-500.0,0.00049589,120]
[354474875,1740522646380,-1272.27,0.00049589,120]
[354474877,1740522646389,-500.0,0.00049589,120]
[354474878,1740522646399,-1693.35,0.00049589,120]
[354474879,1740522646408,-1095.88,0.00049589,120]
[354474880,1740522646418,-1849.31,0.00049589,120]
[354474881,1740522646428,-725.56,0.00049589,120]
[354474882,1740522646437,-500.0,0.00049589,120]
[354474883,1740522646446,-26800.97,0.00049589,120]
[354474884,1740522646455,-1501.31,0.00049589,120]
[354474885,1740522646465,-500.0,0.00049589,120]
[354474886,1740522646475,-912.86,0.00049589,120]
[354474887,1740522646484,-500.0,0.00049589,120]
[354474888,1740522646494,-500.0,0.00049589,120]
[354474889,1740522646504,-1439.61,0.00049589,120]
[354474890,1740522646513,-500.0,0.00049589,120]
[354474891,1740522646523,-1294.68,0.00049589,120]
[354474892,1740522646533,-1192.07,0.00049589,120]
[354474893,1740522646542,-500.0,0.00049589,120]
[354474894,1740522646602,-500.0,0.00049589,120]
[354474895,1740522646612,-2083.31,0.00049589,120]
[354474896,1740522646621,-2602.06,0.00049589,120]
[354474897,1740522646631,-5772.7,0.00049589,120]
[354474898,1740522646640,-550.61,0.00049589,120]
[354474899,1740522646649,-912.52,0.00049589,120]
[354474900,1740522646659,-2917.24,0.00049589,120]
[354474901,1740522646669,-500.0,0.00049589,120]
[354474902,1740522646679,-5797.79,0.00049589,120]
[354474903,1740522646688,-500.0,0.00049589,120]
[354474904,1740522646697,-500.0,0.00049589,120]
[354474905,1740522646711,-500.0,0.00049589,120]
[354474906,1740522646720,-500.0,0.00049589,120]
[354474907,1740522646730,-751.58,0.00049589,120]
[354474908,1740522646740,-500.0,0.00049589,120]
[354474909,1740522646750,-500.0,0.00049589,30]
[354474910,1740522646760,-500.0,0.00049589,120]
[354474911,1740522646769,-500.0,0.00049589,120]
[354474912,1740522646779,-500.0,0.00049589,120]
[354474913,1740522646790,-500.0,0.00049589,120]
[354474914,1740522646800,-500.0,0.00049589,120]
[354474915,1740522646810,-1915.88,0.00049589,120]
[354474916,1740522646820,-533.82,0.00049589,120]
[354474917,1740522646830,-500.0,0.00049589,120]
[354474918,1740522646840,-500.0,0.00049589,120]
[354474919,1740522646849,-15556.18,0.00049589,120]
[354474920,1740522646858,-500.0,0.00049589,120]
[354474921,1740522646868,-7363.02,0.00049589,120]
[354474922,1740522646877,-500.0,0.00049589,120]
[354474923,1740522646886,-500.0,0.00049589,120]
[354474924,1740522646896,-509.57227897,0.00049589,120]
[354474925,1740522646905,-500.0,0.00049589,120]
[354474926,1740522646915,-1055.01,0.00049589,120]
[354474927,1740522646924,-500.0,0.00049589,120]
[354474928,1740522646934,-500.0,0.00049589,120]
[354474929,1740522646943,-1133.62,0.00049589,120]
[354474930,1740522646952,-500.0,0.00049589,120]
[354474931,1740522646962,-500.0,0.00049589,120]
[354474932,1740522646971,-303.24331061,0.00049589,120]
[354474933,1740522646981,-2338.37,0.00049589,120]
[354474934,1740522646991,-1660.86,0.00049589,120]
[354474935,1740522647001,-602.76,0.00049589,120]
[354474936,1740522647010,-23195.94,0.00049589,6]
[354474937,1740522647020,-2061.58,0.00049589,120]
[354474938,1740522647029,-500.0,0.00049589,120]
[354474939,1740522647039,-500.0,0.00049589,120]
[354474940,1740522647049,-500.0,0.00049589,120]
[354474941,1740522647058,-954.24,0.00049589,120]
[354474942,1740522647068,-1238.89,0.00049589,120]
[354474943,1740522647078,-1982.41,0.00049589,120]
[354474944,1740522647088,-500.0,0.00049589,120]
[354474945,1740522647097,-266.71559082,0.00049589,120]
[354474946,1740522647107,-500.68596423,0.00049589,120]
[354474947,1740522647117,-739.9,0.00049589,120]
[354474948,1740522647126,-500.0,0.00049589,120]
[354474949,1740522647135,-500.0,0.00049589,120]
[354474950,1740522647146,-500.0,0.00049589,120]
[354474951,1740522647155,-2136.46,0.00049589,120]
[354474952,1740522647164,-2366.03,0.00049589,120]
[354474953,1740522647174,-500.0,0.00049589,120]
[354474954,1740522647183,-502.79605824,0.00049589,120]
[354474955,1740522647193,-1192.15,0.00049589,120]
[354474956,1740522647202,-500.0,0.00049589,120]
[354474957,1740522647211,-1406.87,0.00049589,120]
[354474958,1740522647221,-1501.53,0.00049589,120]
[354474959,1740522647230,-500.0,0.00049589,120]
[354474960,1740522647240,-500.0,0.00049589,120]
[354474961,1740522647249,-4142.82,0.00049589,120]
[354474962,1740522647258,-500.0,0.00049589,120]
[354474963,1740522647267,-500.0,0.00049589,120]
[354474964,1740522647276,-500.0,0.00049589,120]
[354474965,1740522647286,-500.0,0.00049589,2]
[354474966,1740522647295,-512.58350793,0.00049589,120]
[354474967,1740522647305,-500.0,0.00049589,120]
[354474968,1740522647314,-500.0,0.00049589,120]
[354474969,1740522647323,-12619.34,0.00049589,120]
[354474970,1740522647333,-3895.72,0.00049589,120]
[354474971,1740522647343,-500.0,0.00049589,120]
[354474972,1740522647352,-1625.52,0.00049589,120]
[354474973,1740522647361,-1690.78,0.00049589,120]
[354474974,1740522647371,-500.0,0.00049589,120]
[354474975,1740522647380,-578.92,0.00049589,120]
[354474976,1740522647390,-820.34,0.00049589,120]
[354474977,1740522647399,-500.0,0.00049589,120]
[354474978,1740522647408,-243.55440067,0.00049589,120]
[354474979,1740522647417,-151.0,0.000496,24]
[354474980,1740522647427,-1000.0,0.00049607,120]
[354474981,1740522647437,-204.6091611,0.0004967,4]
[354474982,1740522647446,-1000.0,0.00049744,120]
[354474983,1740522647455,-151.0,0.000498,26]
[354474984,1740522647465,-500.0,0.00049863,120]
[354474985,1740522647474,-2589.76,0.00049863,120]
[354474986,1740522647484,-500.0,0.00049863,120]
[354474987,1740522647493,-500.0,0.00049863,120]
[354474988,1740522647502,-500.0,0.00049863,120]
[354474989,1740522647512,-1347.83,0.00049863,120]
[354474990,1740522647521,-500.0,0.00049863,120]
[354474991,1740522647531,-500.0,0.00049863,120]
[354474992,1740522647540,-500.0,0.00049863,120]
[354474993,1740522647549,-889.5,0.00049863,120]
[354474994,1740522647558,-500.0,0.00049863,120]
[354474995,1740522647567,-500.0,0.00049863,120]
[354474996,1740522647576,-500.0,0.00049863,120]
[354474997,1740522647586,-500.0,0.00049863,120]
[354474998,1740522647595,-1050.06,0.00049863,120]
[354474999,1740522647604,-500.0,0.00049863,120]
[354475000,1740522647613,-500.0,0.00049863,120]
[354475001,1740522647622,-500.0,0.00049863,120]
[354475002,1740522647631,-500.0,0.00049863,120]
[354475003,1740522647640,-500.0,0.00049863,120]
[354475004,1740522647650,-500.0,0.00049863,120]
[354475005,1740522647659,-500.0,0.00049863,120]
[354475006,1740522647668,-968.82,0.00049863,120]
[354475007,1740522647678,-500.0,0.00049863,120]
[354475008,1740522647687,-500.0,0.00049863,120]
[354475009,1740522647696,-500.0,0.00049863,120]
[354475010,1740522647706,-500.0,0.00049863,120]
[354475011,1740522647718,-500.0,0.00049863,120]
[354475012,1740522647727,-500.0,0.00049863,120]
[354475013,1740522647738,-500.0,0.00049863,120]
[354475014,1740522647747,-596.65,0.00049863,120]
[354475015,1740522647757,-401.21436734,0.00049863,120]
[354475016,1740522647766,-500.0,0.00049863,120]
[354475017,1740522647776,-500.0,0.00049863,120]
[354475018,1740522647788,-511.23,0.00049863,120]
[354475019,1740522647797,-500.0,0.00049863,120]
[354475020,1740522647806,-500.0,0.00049863,120]
[354475021,1740522647816,-500.0,0.00049863,120]
[354475022,1740522647826,-500.0,0.00049863,120]
[354475023,1740522647836,-500.0,0.00049863,120]
[354475024,1740522647845,-970.74,0.00049863,120]
[354475025,1740522647855,-500.0,0.00049863,120]
[354475026,1740522647864,-500.0,0.00049863,120]
[354475027,1740522647873,-500.0,0.00049863,120]
[354475028,1740522647882,-500.0,0.00049863,120]
[354475029,1740522647892,-500.0,0.00049863,120]
[354475030,1740522647902,-500.0,0.00049863,120]
[354475031,1740522647913,-500.0,0.00049863,120]
[354475032,1740522647924,-1182.77,0.00049863,120]
[354475033,1740522647935,-500.0,0.00049863,120]
[354475034,1740522647944,-500.0,0.00049863,120]
[354475035,1740522647954,-500.0,0.00049863,120]
[354475036,1740522647964,-500.0,0.00049863,120]
[354475037,1740522647973,-500.0,0.00049863,120]
[354475038,1740522647983,-500.0,0.00049863,120]
[354475039,1740522647993,-500.0,0.00049863,120]
[354475040,1740522648002,-500.0,0.00049863,120]
[354475041,1740522648012,-1000.0,0.00049863,120]
[354475042,1740522648022,-500.0,0.00049863,120]
[354475043,1740522648031,-500.0,0.00049863,120]
[354475044,1740522648041,-500.0,0.00049863,120]
[354475045,1740522648050,-500.0,0.00049863,120]
[354475046,1740522648059,-887.1,0.00049863,120]
[354475047,1740522648069,-1154.88,0.00049863,120]
[354475048,1740522648078,-500.0,0.00049863,120]
[354475049,1740522648088,-500.0,0.00049863,120]
[354475050,1740522648097,-1361.03,0.00049863,120]
[354475051,1740522648107,-500.0,0.00049863,120]
[354475052,1740522648116,-962.48,0.00049863,120]
[354475053,1740522648126,-1065.49,0.00049863,120]
[354475054,1740522648135,-806.39,0.00049863,120]
[354475055,1740522648145,-2442.31,0.00049863,120]
[354475056,1740522648155,-590.45,0.00049863,120]
[354475057,1740522648164,-1911.46,0.00049863,120]
[354475058,1740522648174,-2066.17,0.00049863,120]
[354475059,1740522648183,-500.0,0.00049863,120]
[354475060,1740522648193,-500.0,0.00049863,120]
[354475061,1740522648203,-500.0,0.00049863,120]
[354475062,1740522648212,-549.46,0.00049863,120]
[354475063,1740522648221,-500.0,0.00049863,120]
[354475064,1740522648231,-500.0,0.00049863,120]
[354475065,1740522648243,-500.0,0.00049863,120]
[354475066,1740522648252,-500.0,0.00049863,120]
[354475067,1740522648262,-500.0,0.00049863,120]
[354475068,1740522648272,-500.0,0.00049863,120]
[354475069,1740522648281,-500.0,0.00049863,120]